Cogmind - Beta 15 @@@ ROGUE MODE // 2025.06.28 @ 00:58:38 Player: 0Z-4NL Result: Destroyed by Executioner with Helical Railgun Performance ------------- Evolutions (9) 4500 Regions Visited (26) 5200 Robots Destroyed (239) 1195 Value Destroyed (17344) 17344 Prototype IDs (54) 1080 Alien Tech Used (0) 0 Bonus (20579) 20579 TOTAL SCORE: 49898 Bonus ------- Scavenger 8000 High Alert Combat Kills 1616 Follower Combat Kills 2717 Entered Garrisons 2000 Used RIF Installer 6000 Aligned with FarCom 300 Friendly Fire -54 Cogmind --------- Core Integrity 0/1600 Matter 177/300 Energy 61/100 System Corruption 38% Temperature Cool (0) Movement Core (50) Location -1/Command Parts ------- > --- POWER (3) -------- (None) > --- PROPULSION (6) --- (None) > --- UTILITY (13) ----- Graphene Brace Relay Coupler [NC] (2) Relay Coupler [Sentry] (5) Relay Coupler [Hunter] (8) Relay Coupler [Heavy] (5) > --- WEAPON (3) ------- (None) > --- INVENTORY (5) ---- Improved Fusion Compressor Cooled Q-thruster High-capacity Storage Unit Relay Coupler [Hunter] (17) Advanced Remote Datajack Peak State ------------ > --- POWER ------------ Quantum Reactor Light Quantum Reactor Light Quantum Reactor > --- PROPULSION ------- Myomer Leg Biometal Leg Biometal Leg Biometal Leg Centrium Leg Potential Leg > --- UTILITY ---------- Advanced Cooling System Advanced Cooling System High-capacity Storage Unit Experimental Optical Array Experimental Core Analyzer Advanced Weapon Cycler Advanced Phase Shifter Relay Coupler [NC] Relay Coupler [Swarmer] Relay Coupler [Grunt] Relay Coupler [Grunt] Relay Coupler [Sentry] Relay Coupler [Hunter] > --- WEAPON ----------- Phase Gun Phase Gun Advanced Remote Datajack > --- INVENTORY -------- Particle Reactor Light Quantum Reactor Biometal Leg Potential Leg Cooled Q-thruster Cooled Q-thruster Cooled Q-thruster Advanced Power Amplifier Graphene Brace Relay Coupler [Grunt] Relay Coupler [Sentry] Relay Coupler [Sentry] Relay Coupler [Hunter] Relay Coupler [Hunter] Relay Coupler [Heavy] Gamma Rifle Phase Gun HERF Cannon Nova Cannon Advanced Remote Datajack [Rating: 180] Favorites ----------- Power Light Quantum Reactor Engine Improved Deuterium Engine Power Core Neutrino Core Reactor Light Quantum Reactor Propulsion Biometal Leg Treads Light Treads Leg Biometal Leg Wheel Armored Wheel Hover Unit Improved Antigrav System Utility High-capacity Storage Unit Device Advanced Cooling System Storage High-capacity Storage Unit Processor Advanced Targeting Computer Hackware Relay Coupler [Grunt] Protection Improved Medium Armor Plating Weapon Cooled Particle Cannon Energy Gun Phase Gun Energy Cannon Cooled Particle Cannon Ballistic Gun Gauss Rifle Ballistic Cannon Assault Cannon Launcher Heavy Missile Launcher Special Weapon Remote Datajack Impact Weapon Powered Hammer Build | -11 -10 -10 -10 -9 -8 -8 -8 -8 -7 -7 -6 -6 -5 -5 -5 -5 -4 -4 -3 -3 -2 -2 -2 -2 -1 -1 ------- Run | Yrd Mat Min Exi Min Mat Gar Mat Gar Fac Gar Fac Gar Fac Gar Fac Gar Fac Gar Res Gar Res Gar Res Gar Acc Com Slots Evolved 18 | . . . . . 4 . . . 2 . 2 . 2 . . . 2 . 2 . 2 . . . 2 . Power 2 | . . . . . . . . . . . . . . . . . 1 . . . 1 . . . . . Propulsion 4 | . . . . . 2 . . . 1 . . . . . . . . . 1 . . . . . . . Utility 11 | . . . . . 1 . . . 1 . 2 . 2 . . . 1 . 1 . 1 . . . 2 . Weapon 1 | . . . . . 1 . . . . . . . . . . . . . . . . . . . . . Parts Attached 268 | 4 2 2 4 3 16 14 16 3 4 14 6 18 4 16 1 10 1 27 1 6 7 17 5 33 16 18 Power 34 | . . . 1 . 3 1 1 . . 3 . 4 1 1 . 1 1 3 . . 2 1 1 5 1 4 Engine 9 | . . . 1 . 3 1 1 . . 1 . 1 1 . . . . . . . . . . . . . Core 5 | . . . . . . . . . . 2 . 1 . 1 . . . . . . . . . . . 1 Reactor 20 | . . . . . . . . . . . . 2 . . . 1 1 3 . . 2 1 1 5 1 3 Propulsion 77 | 2 . . 3 1 4 7 8 2 3 5 3 6 . 1 . 2 . 6 . 1 2 3 . 9 6 3 Treads 11 | 2 . . . . 3 5 . . . . . . . . . . . . . . . . . . . 1 Leg 62 | . . . 3 . . 1 8 2 3 5 3 6 . 1 . 2 . 6 . 1 2 3 . 9 6 1 Wheel 3 | . . . . 1 1 1 . . . . . . . . . . . . . . . . . . . . Hover 1 | . . . . . . . . . . . . . . . . . . . . . . . . . . 1 Flight . | . . . . . . . . . . . . . . . . . . . . . . . . . . . Utility 101 | . 2 . . 1 4 2 2 1 1 3 3 5 3 10 1 4 . 14 1 3 3 11 3 12 6 6 Device 33 | . . . . . 1 1 1 . 1 . . . 2 3 1 . . 6 . . 2 2 1 4 3 5 Storage 3 | . . . . 1 . . 1 . . . . . . . . . . . . . . . . . . 1 Processor 9 | . 2 . . . 1 . . . . 2 1 . . . . . . . . 2 . . . 1 . . Hackware 45 | . . . . . . . . 1 . 1 1 5 1 5 . 3 . 5 1 1 1 8 2 7 3 . Protection 11 | . . . . . 2 1 . . . . 1 . . 2 . 1 . 3 . . . 1 . . . . Artifact . | . . . . . . . . . . . . . . . . . . . . . . . . . . . Weapon 56 | 2 . 2 . 1 5 4 5 . . 3 . 3 . 4 . 3 . 4 . 2 . 2 1 7 3 5 Energy Gun 9 | . . . . . . . . . . . . 1 . . . 1 . . . . . . . 6 1 . Energy Cannon 16 | . . . . . . . 3 . . . . 1 . 3 . 2 . 4 . 1 . . . 1 1 . Ballistic Gun 13 | 2 . 2 . 1 3 1 1 . . 1 . . . . . . . . . . . . . . . 2 Ballistic Cannon 3 | . . . . . . 3 . . . . . . . . . . . . . . . . . . . . Launcher 3 | . . . . . 1 . 1 . . 1 . . . . . . . . . . . . . . . . Special Weapon 11 | . . . . . . . . . . 1 . 1 . 1 . . . . . 1 . 2 1 . 1 3 Impact Weapon 1 | . . . . . 1 . . . . . . . . . . . . . . . . . . . . . Slashing Weapon . | . . . . . . . . . . . . . . . . . . . . . . . . . . . Piercing Weapon . | . . . . . . . . . . . . . . . . . . . . . . . . . . . Special Melee Weapon . | . . . . . . . . . . . . . . . . . . . . . . . . . . . Unidentified Prototypes 5 | . . . . . . . 3 . . . . . . . . . . . . . . . . . . 2 Corrupted Parts 2 | . . . . . . . . . . . . . . . . . . . . . . . . . . 2 System Corruption 7 | . . . . . . . . . . . . . . . . . . . . . . . . . . 7 Parts Lost 83 | . . . . 1 2 3 1 . . 2 . . 1 3 . . . 7 . . 1 7 12 4 4 35 Power 15 | . . . . . . . . . . . . . 1 . . . . 1 . . . 1 3 1 1 7 Propulsion 20 | . . . . . . 1 1 . . 2 . . . . . . . . . . . . 2 2 3 9 Utility 30 | . . . . . 1 2 . . . . . . . 1 . . . 5 . . 1 5 3 . . 12 Weapon 18 | . . . . 1 1 . . . . . . . . 2 . . . 1 . . . 1 4 1 . 7 Highest Loss Streak 22 | . . . . 1 1 2 1 . . 1 . . 1 2 . . . 5 . . 1 2 12 2 4 22 To Critical Strikes 2 | . . . . . . . 1 . . . . . . . . . . . . . . . 1 . . . Average Backups 18 | 2 4 5 4 13 19 19 17 19 17 19 19 19 17 19 19 19 18 19 18 19 19 18 18 16 19 17 Power 1 | 1 1 1 . . 1 1 1 1 1 1 1 1 . 1 1 1 1 1 2 2 1 2 2 1 2 1 Propulsion 5 | 1 2 3 3 6 10 8 5 6 6 4 4 4 4 3 3 3 4 5 5 6 6 5 6 4 4 2 Utility 6 | . . . . 4 3 3 5 5 3 9 9 8 6 8 8 8 7 7 7 6 6 6 7 8 7 7 Weapon 4 | . . 1 1 2 4 6 5 6 6 3 3 4 5 5 5 5 6 4 4 2 2 1 1 2 3 4 Tool/Special . | . . . . . . . . . . . . . . . . . . . . . . . . . . . Unused Backups 77 | . 3 . 1 1 5 7 5 . 2 6 1 12 . 4 . 4 . 4 . 1 . 3 . 4 3 11 Power 9 | . 2 . . . . . . . . 1 . 2 . . . 1 . 1 . . . . . 1 . 1 Propulsion 13 | . 1 . . . 2 3 . . . . . 1 . . . 1 . . . . . . . . 3 2 Utility 34 | . . . 1 1 2 . . . 1 3 1 6 . 2 . 2 . 2 . 1 . 3 . 3 . 6 Weapon 20 | . . . . . 1 4 5 . 1 2 . 3 . 2 . . . 1 . . . . . . . 1 Tool/Special 1 | . . . . . . . . . . . . . . . . . . . . . . . . . . 1 Average Slot Usage (%) 97 | . 62 85 95 90 89 96 99 100 99 99 99 100 97 99 100 98 93 96 99 99 99 99 85 98 99 94 Engine 2 | . . . 10 14 9 9 9 9 7 . . 1 . . . . . . . . . . . . . . Core 1 | . . . . . . . . . . 6 6 2 . 2 5 4 . . . . . . . . . . Reactor 5 | . . . . . . . . . . . . 2 4 2 . . 10 9 9 9 12 12 10 12 11 10 Treads 2 | . 28 28 7 . 11 19 3 . . . . . . . . . . . . . . . . . . . Leg 24 | . . . 20 11 . 2 32 36 38 37 32 33 29 29 29 28 21 23 28 28 26 26 23 25 23 20 Wheel 1 | . . . . 8 15 11 . . . . . . . . . . . . . . . . . . . . Device 10 | . . . . . 5 3 8 6 14 8 1 . 4 5 5 4 9 21 28 23 20 21 12 13 14 12 Storage 5 | . . . . 13 9 9 9 9 7 7 6 6 5 5 5 5 5 5 4 4 4 4 4 4 4 4 Processor 8 | . 5 28 28 14 10 9 9 9 7 7 13 13 11 11 11 11 10 2 . 3 4 4 4 7 8 5 Hackware 11 | . . . . . . . . 2 . 5 10 14 15 17 17 17 15 11 8 7 12 14 20 20 25 27 Protection 2 | . . . . . 1 5 . . . . 5 4 5 4 5 5 4 3 4 5 3 1 . . . . Energy Gun 1 | . . . . . . . . . . . . . . . . . . . . . . . . 6 8 6 Energy Cannon 8 | . . . . . . . 24 18 15 15 13 13 11 10 11 10 10 11 9 11 11 9 4 2 . 1 Ballistic Gun 4 | . 28 28 28 28 26 21 1 9 7 1 . . . . . . . . . . . . . . . . Special Weapon 2 | . . . . . . . . . . 4 6 5 5 4 4 4 5 3 4 2 . 2 3 2 2 2 Peak Build Rating 180 | 4 6 6 9 18 38 38 49 47 50 59 76 90 101 102 101 109 121 147 148 159 173 179 172 171 180 180 Average Rating 103 | 3 4 5 8 14 33 32 43 46 46 50 67 85 94 99 99 100 119 131 147 157 169 172 143 163 177 162 On Entrance 81 | . 4 6 6 9 18 37 29 46 46 48 57 76 90 100 99 99 107 121 139 148 159 167 172 89 167 168 Naked Turns . | . . . . . . . . . . . . . . . . . . . . . . . . . . . Heaviest Build 161 | 3 3 3 5 45 69 69 72 66 70 70 68 82 80 90 90 93 109 127 119 132 160 161 127 117 122 151 Greatest Support 178 | 3 3 3 20 28 40 80 80 70 80 87 96 117 117 117 99 124 124 131 156 161 163 178 176 173 172 172 Greatest Overweight (x) 5 | . . . . 2 2 5 1 . . 1 . . . . . . . . . . . . . . . 1 Average Overweight (x) . | . . . . 1 1 1 . . . . . . . . . . . . . . . . . . . . Largest Inventory Capacity 20 | 5 5 5 5 20 20 20 20 20 20 20 20 20 20 20 20 20 20 20 20 20 20 20 20 20 20 20 Average Capacity 19 | 5 5 5 5 19 20 20 19 20 20 20 20 20 20 20 20 20 20 20 20 20 20 20 20 20 20 19 Most Carried 20 | 4 5 5 5 20 20 20 20 20 20 20 20 20 19 20 20 20 19 20 19 20 20 20 20 20 20 20 Average Carried 18 | 2 4 5 4 13 19 19 17 19 17 19 19 19 17 19 19 19 18 19 18 19 19 19 19 16 19 17 Final Capacity 20 | 5 5 5 5 20 20 20 20 20 20 20 20 20 20 20 20 20 20 20 20 20 20 20 20 20 20 5 Final Carried 20 | 4 5 5 5 20 20 20 19 19 20 20 19 20 17 19 20 20 19 20 19 20 20 20 16 20 18 5 Class Distribution -------------------- 43% | Botlord-Skirmisher 12% | Skirmisher 12% | Bothacker-Skirmisher 11% | Botlord-Tank 6% | Scavenger-Skirmisher 4% | Botlord-Mutant 3% | Mutant Dominant Class ---------------- Mutant | -10/Materials Mutant | -10/Mines Scavenger-Mutant | -10/Exiles Mutant | -9/Mines Skirmisher | -8/Materials Skirmisher | -8/Garrison Skirmisher | -8/Materials Skirmisher | -8/Garrison Scavenger-Skirmisher | -7/Factory Bothacker-Skirmisher | -7/Garrison Bothacker-Skirmisher | -6/Factory Botlord-Skirmisher | -6/Garrison Bothacker-Skirmisher | -5/Factory Botlord-Skirmisher | -5/Garrison Botlord-Skirmisher | -5/Factory Botlord-Skirmisher | -5/Garrison Botlord-Skirmisher | -4/Factory Botlord-Tank | -4/Garrison Botlord-Tank | -3/Research Botlord-Tank | -3/Garrison Botlord-Tank | -2/Research Botlord-Skirmisher | -2/Garrison Botlord-Skirmisher | -2/Research Botlord-Skirmisher | -2/Garrison Botlord-Skirmisher | -1/Access Botlord-Skirmisher | -1/Command Resources | -11 -10 -10 -10 -9 -8 -8 -8 -8 -7 -7 -6 -6 -5 -5 -5 -5 -4 -4 -3 -3 -2 -2 -2 -2 -1 -1 ----------- Run | Yrd Mat Min Exi Min Mat Gar Mat Gar Fac Gar Fac Gar Fac Gar Fac Gar Fac Gar Res Gar Res Gar Res Gar Acc Com Matter Collected 8696 | 256 136 66 . 86 472 1310 478 217 . 709 110 493 95 318 95 264 . 753 . 165 160 621 22 961 524 385 Remotely . | . . . . . . . . . . . . . . . . . . . . . . . . . . . Salvage Created 13024 | 88 283 155 . 101 523 1134 1143 241 . 844 . 1107 . 582 192 364 . 1940 . 353 170 1052 13 1383 880 476 Parts 589 | 3 23 13 . 6 30 68 63 15 . 38 . 39 . 18 10 15 . 69 . 13 12 37 2 54 45 16 Haulers Intercepted 8 | . 2 . . . 1 . 5 . . . . . . . . . . . . . . . . . . . Recyclers Shooed 2 | . . . . . 2 . . . . . . . . . . . . . . . . . . . . . Parts Field Recycled . | . . . . . . . . . . . . . . . . . . . . . . . . . . . Retrieved Matter . | . . . . . . . . . . . . . . . . . . . . . . . . . . . Parts Self-Destructed . | . . . . . . . . . . . . . . . . . . . . . . . . . . . Prevented . | . . . . . . . . . . . . . . . . . . . . . . . . . . . Kills | -11 -10 -10 -10 -9 -8 -8 -8 -8 -7 -7 -6 -6 -5 -5 -5 -5 -4 -4 -3 -3 -2 -2 -2 -2 -1 -1 ------- Run | Yrd Mat Min Exi Min Mat Gar Mat Gar Fac Gar Fac Gar Fac Gar Fac Gar Fac Gar Res Gar Res Gar Res Gar Acc Com Combat Hostiles Destroyed 203 | . 4 5 . 3 12 25 16 7 . 24 . 17 . 11 3 5 . 24 . 4 2 12 . 14 10 5 Guns 59 | . 4 5 . 3 8 16 . 3 . . . . . . . . . . . . . . . 7 10 3 Cannons 81 | . . . . . . 2 11 4 . 12 . 11 . 8 2 5 . 9 . 1 2 9 . 4 . 1 AOE 33 | . . . . . 4 7 3 . . 12 . 4 . 3 . . . . . . . . . . . . Classes Destroyed 20 | 2 4 1 . 2 2 1 2 . . . . 1 . 1 . . . 1 . 2 . 1 . . . . Worker 6 | . . 1 . . . . 5 . . . . . . . . . . . . . . . . . . . Builder 5 | . 1 . . . 2 . 1 . . . . . . . . . . . . . . . 1 . . . Tunneler 2 | 1 1 . . . . . . . . . . . . . . . . . . . . . . . . . Hauler 8 | . 2 . . . 1 . 5 . . . . . . . . . . . . . . . . . . . Recycler 5 | 1 1 . . . . . 1 . . . . . . . . . . . . . . . . . 1 1 Operator 2 | . . . . . . . 2 . . . . . . . . . . . . . . . . . . . Watcher 2 | . . . . . . . 2 . . . . . . . . . . . . . . . . . . . Swarmer 42 | . 3 3 . . 2 9 3 3 . 10 . 4 . 3 . 1 . 1 . . . . . . . . Cutter 2 | . . . . . . . . . . . . . . . . . . . . . . 2 . . . . Grunt 87 | . 1 2 . 1 7 7 9 4 . 8 . 10 . 3 . 3 . 19 . 1 . 5 . 6 1 . Brawler 5 | . . . . 1 . . . . . 3 . . . . . . . . . . . . . 1 . . Duelist 1 | . . . . . . . . . . . . . . 1 . . . . . . . . . . . . Sentry 24 | . . . . . 1 7 2 . . . . 1 . 3 1 . . 1 . . 1 2 . 3 1 1 Specialist 2 | . . . . . . . . . . . . . . . . . . . . 2 . . . . . . Hunter 15 | . . . . . 2 1 2 . . . . 2 . 1 . 1 . . . . . 1 . 2 3 . Programmer 22 | . . . . . . 1 . . . 3 . 1 . . 2 2 . . . . 1 2 . 1 5 4 Behemoth 5 | . . . . . . . . . . . . 1 . . . . . 2 . . . 1 . 1 . . Striker 1 | . . . . . . . . . . . . . . . . . . 1 . . . . . . . . Executioner 1 | . . . . . . . . . . . . . . . . . . . . 1 . . . . . . Assembled 1 | . . . . 1 . . . . . . . . . . . . . . . . . . . . . . Thug 2 | . . . . . . 2 . . . . . . . . . . . . . . . . . . . . Best Kill Streak 9 | 2 5 3 . 2 5 4 6 3 . 8 . 9 . 3 1 1 . 2 . 1 1 3 1 4 3 3 Combat Bots Only 9 | . 3 3 . 2 4 4 4 3 . 8 . 9 . 3 1 1 . 2 . 1 1 3 . 4 3 3 Max Kills in Single Turn 3 | 1 1 2 . 1 3 3 2 1 . 3 . 2 . 3 1 1 . 1 . 1 1 1 1 1 1 1 Gunslinging 1 | . . 1 . . . 1 . . . . . . . . . . . . . . . . . . . . Exploded 3 | . . . . . 3 3 2 . . 3 . 2 . 3 . . . . . . . . . . . . Melee . | . . . . . . . . . . . . . . . . . . . . . . . . . . . Uniques/NPCs Destroyed . | . . . . . . . . . . . . . . . . . . . . . . . . . . . Combat | -11 -10 -10 -10 -9 -8 -8 -8 -8 -7 -7 -6 -6 -5 -5 -5 -5 -4 -4 -3 -3 -2 -2 -2 -2 -1 -1 -------- Run | Yrd Mat Min Exi Min Mat Gar Mat Gar Fac Gar Fac Gar Fac Gar Fac Gar Fac Gar Res Gar Res Gar Res Gar Acc Com Hostile Shots Fired 1432 | . 20 20 . 7 73 91 52 19 . 48 1 32 6 56 20 29 . 153 . 16 18 121 137 79 66 368 Missed 517 | . 6 6 . 1 15 17 11 6 . 18 . 16 . 14 7 9 . 69 . 3 13 54 58 24 27 143 Deflected 6 | . . . . . . . . . . . . . . . . . . 6 . . . . . . . . Hits 915 | . 14 14 . 6 58 74 41 13 . 30 1 16 6 42 13 20 . 84 . 13 5 67 79 55 39 225 Melee 13 | . . . . 5 . . . . . . . . . . . . . . . . 1 7 . . . . Projectile 902 | . 14 14 . 1 58 74 41 13 . 30 1 16 6 42 13 20 . 84 . 13 4 60 79 55 39 225 AOE 3 | . . . . . . . . . . 1 . . . . . . . . . . . 2 . . . . Critical Strikes 51 | . . . . . 1 2 3 2 . . . 1 . 1 1 1 . 7 . . 1 3 3 3 3 19 Actively Blocked 27 | . . . . . . . . . . . . . . . . . . 5 . . . 3 1 . . 18 Part Disruptions 3 | . . . . . . . . . . . . . . . . . . . . . . . . . 1 2 Damage Taken 18671 | . 123 145 . 150 698 1037 604 187 . 513 20 330 109 592 265 270 . 2147 . 565 65 1844 1570 1721 1055 4661 Core 2732 | . . 28 . 93 98 40 55 31 . 85 . 57 . 39 21 68 . 119 . . . 166 47 179 121 1485 Absorbed by Shields 1061 | . . . . . 58 88 . . . 22 . 97 . 117 . 87 . 58 . . 67 292 . 51 . 124 Regen/Repaired (Parts) 267 | . . . . . 90 . 92 . . . . . . . . . 85 . . . . . . . . . Core Remaining (%) 82 | 100 . . . 51 . . . 59 . 87 . 93 . . . 87 . 89 . 100 . . . 72 . . Volleys Fired 1128 | 4 29 15 . 11 36 89 58 23 5 78 14 97 15 45 12 42 8 137 5 34 12 112 9 117 76 45 Largest 3 | 2 2 2 . 2 3 3 3 3 1 3 1 3 2 3 3 3 1 3 1 2 3 3 1 3 3 3 Hottest 360 | 40 40 40 . 40 81 111 90 85 30 90 90 150 120 210 210 270 90 360 120 176 360 360 120 266 289 289 Shots Fired 1893 | 8 58 30 . 21 95 242 148 56 5 124 14 145 18 66 20 52 8 167 5 43 16 155 9 185 127 76 Gun 704 | 8 58 30 . 21 91 209 . 20 . 5 . 2 . . . . . . . . . . . 114 84 62 Cannon 947 | . . . . . . 29 145 36 5 102 6 102 10 53 18 38 8 138 2 41 12 130 1 43 17 11 Launcher 25 | . . . . . 4 4 3 . . 10 . 2 . 2 . . . . . . . . . . . . Special 217 | . . . . . . . . . . 7 8 39 8 11 2 14 . 29 3 2 4 25 8 28 26 3 Kinetic 473 | 8 58 30 . 21 91 238 . 20 . 5 . . . . . . . . . . . . . . . 2 Thermal 987 | . . . . . . . 145 36 5 102 6 104 10 45 15 28 8 52 2 19 8 104 1 128 98 71 Explosive 25 | . . . . . 4 4 3 . . 10 . 2 . 2 . . . . . . . . . . . . Electromagnetic 191 | . . . . . . . . . . . . . . 8 3 10 . 86 . 22 4 26 . 29 3 . Robot Hit Streak 29 | 2 13 10 . 4 9 29 12 5 . 17 11 13 8 10 22 25 . 19 4 9 8 14 6 12 13 16 Robot Miss Streak 5 | 1 2 3 . 2 3 3 3 2 . 2 3 3 3 1 . 3 . 3 . 2 1 4 1 5 4 4 Penetration Max 1 | . . . . . 1 1 . . . . . . . . . . . . . . . . . . . . Secondary Targets 9 | . . 2 . 1 . 3 . . . . . . . . . . . . . . . . . . 1 2 Max Gunslinging Chain 1 | . . 1 . 1 . 1 . . . . . . . . . . . . . . . . . . 1 1 Shots Hit Robots 1129 | 4 36 20 . 14 64 170 76 28 . 61 5 93 5 45 16 27 . 112 3 16 8 78 7 120 76 45 Core Hits 414 | 2 15 10 . 7 33 59 37 11 . 35 . 34 . 19 4 8 . 29 . 5 4 22 1 37 29 13 Critical Kills 6 | . 1 . . . . . 2 . . . . 1 . . . . . 1 . . . 1 . . . . Critical Parts Destroyed 5 | . . . . . . 5 . . . . . . . . . . . . . . . . . . . . Critical Strikes 24 | . 1 . . . . 6 2 . . . . 2 . . . . . 3 . . . 1 . 6 2 1 Burn 10 | . . . . . . . . . . . . 1 . . . . . . . . . . . 6 2 1 Meltdown 5 | . . . . . . . 2 . . . . 1 . . . . . 1 . . . 1 . . . . Destroy 6 | . 1 . . . . 5 . . . . . . . . . . . . . . . . . . . . Blast 1 | . . . . . . 1 . . . . . . . . . . . . . . . . . . . . Corrupt 2 | . . . . . . . . . . . . . . . . . . 2 . . . . . . . . Melee Attacks 10 | . . . . . 2 8 . . . . . . . . . . . . . . . . . . . . Impact 10 | . . . . . 2 8 . . . . . . . . . . . . . . . . . . . . Slashing . | . . . . . . . . . . . . . . . . . . . . . . . . . . . Piercing . | . . . . . . . . . . . . . . . . . . . . . . . . . . . Sneak Attacks . | . . . . . . . . . . . . . . . . . . . . . . . . . . . Combat Hostiles . | . . . . . . . . . . . . . . . . . . . . . . . . . . . Follow-up Attacks . | . . . . . . . . . . . . . . . . . . . . . . . . . . . Damage Inflicted 29401 | 51 352 175 . 109 1248 3049 2457 633 . 2734 . 2240 . 1342 530 751 . 3727 . 513 188 3000 11 3226 1750 1315 Guns 9318 | 51 352 175 . 109 806 2306 . 200 . 70 . 40 . . . . . . . . . . . 2237 1704 1268 Cannons 17326 | . . . . . . 378 2302 433 . 1401 . 1925 . 1175 530 751 . 3727 . 513 188 2921 . 989 46 47 Explosions 2744 | . . . . . 440 365 155 . . 1263 . 275 . 167 . . . . . . . 79 . . . . Melee . | . . . . . . . . . . . . . . . . . . . . . . . . . . . Ramming 13 | . . . . . 2 . . . . . . . . . . . . . . . . . 11 . . . Kinetic 4477 | 51 352 175 . 109 806 2684 . 200 . 70 . . . . . . . . . . . . . . . 30 Thermal 17486 | . . . . . . . 2302 433 . 1401 . 1965 . 905 430 473 . 1342 . 40 56 2535 . 2569 1750 1285 Explosive 2665 | . . . . . 440 365 155 . . 1263 . 275 . 167 . . . . . . . . . . . . Electromagnetic 4760 | . . . . . . . . . . . . . . 270 100 278 . 2385 . 473 132 465 . 657 . . Impact . | . . . . . . . . . . . . . . . . . . . . . . . . . . . Slashing . | . . . . . . . . . . . . . . . . . . . . . . . . . . . Piercing . | . . . . . . . . . . . . . . . . . . . . . . . . . . . Highest Corruption 38 | . . . . . . 1 3 3 . 3 . . . . 1 1 . 6 . 2 . 2 2 5 6 38 Average Corruption 3 | . . . . . . 1 2 3 . 2 . . . . 1 1 . 4 . 1 . 1 2 4 2 11 Corruption Purged . | . . . . . . . . . . . . . . . . . . . . . . . . . . . Corruption Blocked . | . . . . . . . . . . . . . . . . . . . . . . . . . . . Effects 254 | . . . . . . 13 23 5 . 34 . . . . 1 8 . 36 . 1 . 22 4 58 7 42 Message Errors 60 | . . . . . . 1 7 1 . 12 . . . . . 2 . 6 . . . 5 . 14 2 10 Matter Fused 58 | . . . . . . 3 7 2 . 8 . . . . 1 1 . 8 . . . 2 2 11 3 10 Heat Flow Errors 28 | . . . . . . 1 2 1 . 4 . . . . . . . 8 . 1 . . 1 6 . 4 Energy Discharges 30 | . . . . . . 3 1 . . 2 . . . . . 1 . 5 . . . 2 1 12 1 2 Parts Rejected 3 | . . . . . . . 1 . . . . . . . . . . . . . . 2 . . . . Parts Fused 4 | . . . . . . 1 . . . 1 . . . . . . . . . . . 1 . 1 . . Data Loss (minor) 29 | . . . . . . . 1 1 . 1 . . . . . 1 . 5 . . . 3 . 9 1 7 Data Loss (major) 14 | . . . . . . 1 . . . 1 . . . . . 1 . 3 . . . 3 . 2 . 3 Misfires 15 | . . . . . . 2 1 . . 4 . . . . . 1 . . . . . 2 . 2 . 3 Alerts 4 | . . . . . . . . . . . . . . . . 1 . 1 . . . 2 . . . . Misdirections 1 | . . . . . . . . . . . . . . . . . . . . . . . . . . 1 Weapon Failures 8 | . . . . . . 1 3 . . 1 . . . . . . . . . . . . . 1 . 2 Overload Shots 1 | . . . . . . . . . . . 1 . . . . . . . . . . . . . . . Overflow Damage 416 | . . . . . . 52 65 7 . 64 . 47 . 9 3 87 . 54 . 1 . . . 27 . . Projectiles 296 | . . . . . . 15 48 7 . 14 . 31 . 9 3 87 . 54 . 1 . . . 27 . . Explosions 120 | . . . . . . 37 17 . . 50 . 16 . . . . . . . . . . . . . . Melee . | . . . . . . . . . . . . . . . . . . . . . . . . . . . Knockbacks 6 | . . . . . . 6 . . . . . . . . . . . . . . . . . . . . Impact . | . . . . . . . . . . . . . . . . . . . . . . . . . . . Kinetic 6 | . . . . . . 6 . . . . . . . . . . . . . . . . . . . . Secondary . | . . . . . . . . . . . . . . . . . . . . . . . . . . . Self-Inflicted Damage 88 | . . . . . . . . . . 5 . . . . . . . . . . . 83 . . . . Shots 2 | . . . . . . . . . . 1 . . . . . . . . . . . 1 . . . . Rammed 1 | . . . . . 1 . . . . . . . . . . . . . . . . . . . . . Targets Rammed 2 | . . . . . 1 . . . . . . . . . . . . . . . . . 1 . . . Kicked 1 | . . . . . . . . . . . . . . . . . . . . . . . 1 . . . Crushed . | . . . . . . . . . . . . . . . . . . . . . . . . . . . Highest Temperature 569 | . 1 4 . 6 54 331 179 212 . 248 36 252 77 279 360 360 . 376 33 280 213 516 83 569 367 400 Average Temperature 75 | . 1 4 . 6 16 70 32 72 . 53 23 71 32 86 100 86 . 77 33 101 63 104 42 92 87 98 Received Heat Transfer 2971 | . 18 42 . 6 207 378 252 126 . 135 9 27 . 12 18 24 . 330 . 21 . 218 9 1049 45 45 Effects 25 | . . . . . . 1 . . . . . . . . 2 1 . 1 . . . 6 . 10 3 1 Shutdowns 11 | . . . . . . . . . . . . . . . . . . 1 . . . 2 . 4 3 1 Energy Bleed 3 | . . . . . . 1 . . . . . . . . . 1 . . . . . . . 1 . . Interference 5 | . . . . . . . . . . . . . . . 2 . . . . . . 3 . . . . Matter Decay 1 | . . . . . . . . . . . . . . . . . . . . . . . . 1 . . Short Circuit 1 | . . . . . . . . . . . . . . . . . . . . . . 1 . . . . Damage (major) 4 | . . . . . . . . . . . . . . . . . . . . . . . . 4 . . Siege Activations . | . . . . . . . . . . . . . . . . . . . . . . . . . . . Martial Activations . | . . . . . . . . . . . . . . . . . . . . . . . . . . . Shielding Activations 3 | . . . . . . . . . . . . . . . . . . 3 . . . . . . . . Total Turns 54 | . . . . . . . . . . . . . . . . . . 54 . . . . . . . . Longest Duration 31 | . . . . . . . . . . . . . . . . . . 31 . . . . . . . . Robots Disrupted . | . . . . . . . . . . . . . . . . . . . . . . . . . . . Combat Hostiles . | . . . . . . . . . . . . . . . . . . . . . . . . . . . Robots Corrupted 23 | . . . . . . . . . . . . . . . 1 . . 14 . 3 . 2 . 3 . . Combat Hostiles 23 | . . . . . . . . . . . . . . . 1 . . 14 . 3 . 2 . 3 . . Parts Fried 47 | . . . . . . . . . . . . . . 5 1 1 . 15 . 14 1 3 . 7 . . Impact Corruptions . | . . . . . . . . . . . . . . . . . . . . . . . . . . . Robots Melted 8 | . . . . . . . 3 . . . . 2 . . . . . 1 . . . 1 . . . 1 Combat Hostiles 7 | . . . . . . . 2 . . . . 2 . . . . . 1 . . . 1 . . . 1 Parts Melted 55 | . . . . . . 1 11 1 . 2 . 7 . 4 3 2 . 2 . . . 5 . 5 2 10 Heat Transferred 20589 | . . . . . . . 3145 592 . 1636 . 2606 . 1036 407 444 . 1258 . 37 37 1738 . 3583 2442 1628 Parts Sabotaged . | . . . . . . . . . . . . . . . . . . . . . . . . . . . Parts Stolen . | . . . . . . . . . . . . . . . . . . . . . . . . . . . Parts Stripped . | . . . . . . . . . . . . . . . . . . . . . . . . . . . Power Chain Reactions 1 | . . . . . . . . . . . . . . . . . . . . . . 1 . . . . Alert | -11 -10 -10 -10 -9 -8 -8 -8 -8 -7 -7 -6 -6 -5 -5 -5 -5 -4 -4 -3 -3 -2 -2 -2 -2 -1 -1 ------- Run | Yrd Mat Min Exi Min Mat Gar Mat Gar Fac Gar Fac Gar Fac Gar Fac Gar Fac Gar Res Gar Res Gar Res Gar Acc Com Maximum Alert Level 4 | . . . . . 1 3 2 2 1 4 2 4 3 3 1 2 . 4 2 2 1 2 1 3 2 . Low Security (%) 31 | 100 100 100 . 100 91 12 . . 32 16 . . . . 76 28 100 15 . 9 68 26 31 36 80 100 Level 1 21 | . . . . . 8 20 35 57 67 3 . . 16 20 23 65 . 12 1 31 31 40 68 33 . . Level 2 27 | . . . . . . 28 64 42 . 32 100 19 54 49 . 5 . 38 98 59 . 32 . 17 19 . Level 3 14 | . . . . . . 38 . . . 42 . 32 28 30 . . . 27 . . . . . 12 . . Level 4 4 | . . . . . . . . . . 4 . 48 . . . . . 5 . . . . . . . . Level 5 . | . . . . . . . . . . . . . . . . . . . . . . . . . . . High Security . | . . . . . . . . . . . . . . . . . . . . . . . . . . . Max Security . | . . . . . . . . . . . . . . . . . . . . . . . . . . . Peak Influence 1567 | 10 79 120 . 64 218 1085 574 531 286 1256 659 1567 822 943 232 407 197 1145 642 483 263 536 301 840 504 20 Initial 822 | . . 22 . . 5 41 528 339 278 102 659 400 822 254 232 70 197 58 642 195 263 80 301 24 504 1 Average 431 | 1 55 64 . 10 133 586 463 421 224 676 599 1107 538 593 149 280 145 575 586 368 183 335 200 319 108 1 Influence Increases 10692 | 10 157 155 . 80 393 1074 628 192 28 1214 113 1387 67 839 107 367 27 1295 4 314 124 666 32 1036 244 139 Destroy 0b10 Robot/C 4528 | . 80 100 . 40 240 560 320 140 . 560 60 680 20 300 60 90 . 465 . 150 30 201 . 252 120 60 Destroy 0b10 Robot/NC 182 | 10 25 5 . . 15 10 80 . . 5 5 15 . . . . . . . . . . 3 3 3 3 Destroy Leader 510 | . 24 20 . 10 52 30 84 . . 40 10 30 10 30 20 18 . 24 . 8 16 24 . 18 24 18 Allied During Kill 424 | . . . . . . 33 . . . 21 18 160 12 35 . 1 . 43 . 50 . 9 . 31 11 . Successful Hack 258 | . 28 . . . 9 30 7 12 27 42 . 16 . . 19 14 11 11 . . . . . 14 . 18 Disable Machine 498 | . . . . . 45 . 60 15 . 75 15 90 15 60 . 57 . 24 . 12 12 . . 9 9 . Anti-Garrison Action 2775 | . . . . . . 300 . . . 350 . 350 . 300 . 126 . 566 . 76 . 227 . 480 . . Destroy Structure 767 | . . . . . 32 66 62 10 1 121 5 31 10 69 8 16 16 30 4 18 18 100 2 76 50 22 Lose Combat Pursuer 750 | . . 30 . 30 . 45 15 15 . . . 15 . 45 . 45 . 132 . . 48 105 27 153 27 18 Influence Decreases 10692 | 10 100 142 70 64 345 53 1191 183 413 104 797 392 1270 760 449 91 320 236 886 106 486 237 535 229 1081 142 Entered New Map 4630 | . . 35 70 . 11 23 557 183 253 44 597 172 745 110 211 31 180 26 501 66 206 27 235 9 336 2 Time Decay 2917 | 10 100 107 . 64 314 . 474 . 160 . 180 . 180 . 238 . 140 . 110 . 270 . 140 . 334 96 Lost Part 502 | . . . . . 20 30 10 . . 20 . . 10 30 . . . 70 . . 10 70 120 40 38 34 Lost Ally 1168 | . . . . . . . . . . 40 20 220 60 120 . 60 . 140 . 40 . 140 40 180 98 10 Purge Threat 1475 | . . . . . . . 150 . . . . . 275 500 . . . . 275 . . . . . 275 . Squads Dispatched 29 | . 1 . . 1 4 . 3 . . . 1 . 2 . 1 . . . . . 2 . 1 . 7 6 Investigation 2 | . . . . 1 . . 1 . . . . . . . . . . . . . . . . . . . Extermination 12 | . . . . . . . . . . . . . 1 . 1 . . . . . 2 . 1 . 3 4 Reinforcement 11 | . 1 . . . 1 . 2 . . . . . 1 . . . . . . . . . . . 4 2 Assault 1 | . . . . . . . . . . . 1 . . . . . . . . . . . . . . . Garrison 3 | . . . . . 3 . . . . . . . . . . . . . . . . . . . . . Intercept . | . . . . . . . . . . . . . . . . . . . . . . . . . . . Searches Triggered . | . . . . . . . . . . . . . . . . . . . . . . . . . . . Construction Impeded 1 | . . . . . 1 . . . . . . . . . . . . . . . . . . . . . Haulers Reinforced . | . . . . . . . . . . . . . . . . . . . . . . . . . . . Active Scanning Responses . | . . . . . . . . . . . . . . . . . . . . . . . . . . . Cargo Convoy Interrupts . | . . . . . . . . . . . . . . . . . . . . . . . . . . . Alert ID Control Effect 11 | . . . . . . . . . . . . . . . . 1 . . . . . . 1 4 5 . Stealth | -11 -10 -10 -10 -9 -8 -8 -8 -8 -7 -7 -6 -6 -5 -5 -5 -5 -4 -4 -3 -3 -2 -2 -2 -2 -1 -1 --------- Run | Yrd Mat Min Exi Min Mat Gar Mat Gar Fac Gar Fac Gar Fac Gar Fac Gar Fac Gar Res Gar Res Gar Res Gar Acc Com Distress Signals 5 | . . . . . 1 . . . . . 1 . . . . . . . . . . . 2 . 1 . Communications Jammed 55 | . . . . . . . 2 . . . . . . . . . . . . . . . 53 . . . Distress Signals 43 | . . . . . . . 2 . . . . . . . . . . . . . . . 41 . . . Times Spotted 415 | . 10 6 . 7 13 28 30 7 . 19 4 31 3 20 4 12 . 43 2 6 14 40 17 46 27 26 Peak Tracking Total 15 | . 5 3 . 3 4 4 4 2 . 6 1 4 1 4 2 4 . 5 1 1 9 10 7 5 8 15 Tactical Retreats 42 | . . 1 . 3 . 3 1 1 . . . 1 . 2 . 2 . 4 . . 1 4 2 12 3 2 Traps | -11 -10 -10 -10 -9 -8 -8 -8 -8 -7 -7 -6 -6 -5 -5 -5 -5 -4 -4 -3 -3 -2 -2 -2 -2 -1 -1 ------- Run | Yrd Mat Min Exi Min Mat Gar Mat Gar Fac Gar Fac Gar Fac Gar Fac Gar Fac Gar Res Gar Res Gar Res Gar Acc Com Traps Triggered 49 | . . . . . . 7 4 1 . 4 2 2 1 3 1 3 . 6 1 2 1 3 . 6 . 2 Indirectly . | . . . . . . . . . . . . . . . . . . . . . . . . . . . Trap Hack Attempts . | . . . . . . . . . . . . . . . . . . . . . . . . . . . Triggered . | . . . . . . . . . . . . . . . . . . . . . . . . . . . Disarmed . | . . . . . . . . . . . . . . . . . . . . . . . . . . . Reprogrammed . | . . . . . . . . . . . . . . . . . . . . . . . . . . . Reused . | . . . . . . . . . . . . . . . . . . . . . . . . . . . Traps Extracted . | . . . . . . . . . . . . . . . . . . . . . . . . . . . Installed . | . . . . . . . . . . . . . . . . . . . . . . . . . . . Triggered . | . . . . . . . . . . . . . . . . . . . . . . . . . . . Machines | -11 -10 -10 -10 -9 -8 -8 -8 -8 -7 -7 -6 -6 -5 -5 -5 -5 -4 -4 -3 -3 -2 -2 -2 -2 -1 -1 ---------- Run | Yrd Mat Min Exi Min Mat Gar Mat Gar Fac Gar Fac Gar Fac Gar Fac Gar Fac Gar Res Gar Res Gar Res Gar Acc Com Machines Disabled 69 | . . . . . 3 2 4 1 . 8 1 11 1 7 . 8 . 8 . 3 1 5 . 5 1 . Max in Single Turn 1 | . . . . . 1 1 1 1 . 1 . 1 1 1 . 1 . 1 . 1 1 1 . 1 1 . Garrison Access 1 | . . . . . . . . . . . . . . . . . . . . . . . . . 1 . Garrison Relay 33 | . . . . . . 2 . . . 3 . 5 . 3 . 3 . 5 . 2 . 5 . 5 . . Energy Cycler 1 | . . . . . . . . . . . . . . . . . . . . . . . . . 1 . Machines Repaired . | . . . . . . . . . . . . . . . . . . . . . . . . . . . Machines Dismantled . | . . . . . . . . . . . . . . . . . . . . . . . . . . . Machines Sabotaged . | . . . . . . . . . . . . . . . . . . . . . . . . . . . Overloaded Fab Kills . | . . . . . . . . . . . . . . . . . . . . . . . . . . . Hacking | -11 -10 -10 -10 -9 -8 -8 -8 -8 -7 -7 -6 -6 -5 -5 -5 -5 -4 -4 -3 -3 -2 -2 -2 -2 -1 -1 --------- Run | Yrd Mat Min Exi Min Mat Gar Mat Gar Fac Gar Fac Gar Fac Gar Fac Gar Fac Gar Res Gar Res Gar Res Gar Acc Com Machines Accessed 64 | . 4 . 2 1 4 3 8 3 3 2 2 3 2 2 4 2 3 4 2 . 2 2 1 2 1 2 Terminals 43 | . 4 . . . 1 3 6 3 . 2 1 3 1 2 3 2 . 4 1 . 1 2 . 2 . 2 Fabricators 2 | . . . . . . . . . 2 . . . . . . . . . . . . . . . . . Repair Stations 4 | . . . . . 1 . 1 . . . . . . . . . 2 . . . . . . . . . Recycling Units . | . . . . . . . . . . . . . . . . . . . . . . . . . . . Scanalyzers 1 | . . . . . 1 . . . . . . . . . . . . . . . . . . . . . Garrison Access 11 | . . . . . 1 . 1 . 1 . 1 . 1 . 1 . 1 . 1 . 1 . 1 . 1 . Total Hacks 120 | . 10 . 2 1 6 5 22 8 4 6 2 7 3 3 6 2 7 8 2 . 2 3 1 4 2 4 Successful 61 | . 5 . 2 1 5 3 10 3 4 4 2 2 1 . 3 1 4 2 1 . 1 . 1 2 2 2 Failed 59 | . 5 . . . 1 2 12 5 . 2 . 5 2 3 3 1 3 6 1 . 1 3 . 2 . 2 Catastrophic 13 | . . . . . . . 1 1 . . . . 1 2 . 1 1 3 1 . 1 . . 1 . . Database Lockouts . | . . . . . . . . . . . . . . . . . . . . . . . . . . . Manual 12 | . 2 . 1 . . . 3 2 . 3 . 1 . . . . . . . . . . . . . . Terminals 90 | . 10 . . . 2 5 18 8 . 6 1 7 2 3 5 2 . 8 1 . 1 3 . 4 . 4 Fabricators 3 | . . . . . . . . . 3 . . . . . . . . . . . . . . . . . Repair Stations 11 | . . . . . 2 . 3 . . . . . . . . . 6 . . . . . . . . . Recycling Units . | . . . . . . . . . . . . . . . . . . . . . . . . . . . Scanalyzers 1 | . . . . . 1 . . . . . . . . . . . . . . . . . . . . . Garrison Access 12 | . . . . . 1 . 1 . 1 . 1 . 1 . 1 . 1 . 1 . 1 . 1 . 2 . Terminal Hacks 32 | . 4 . 2 1 1 3 5 2 . 2 1 2 . . 2 1 . 2 . . . . . 2 . 2 Record 1 | . . . 1 . . . . . . . . . . . . . . . . . . . . . . . Prototype ID Bank 7 | . 3 . . . . . 1 . . . 1 . . . 1 . . . . . . . . . . 1 Open Door 4 | . . . . 1 . 1 . . . . . 1 . . . . . . . . . . . 1 . . Emergency Access Points 5 | . . . . . . 1 . . . 1 . . . . . 1 . 1 . . . . . 1 . . Unreport Threat 1 | . . . . . . . 1 . . . . . . . . . . . . . . . . . . . Locate Traps 2 | . . . . . . . 1 . . . . . . . . . . . . . . . . . . 1 Hauler Manifests 2 | . . . . . 1 . 1 . . . . . . . . . . . . . . . . . . . Registered Components 2 | . 1 . . . . . 1 . . . . . . . . . . . . . . . . . . . Zone Layout 1 | . . . . . . . . . . . . . . . 1 . . . . . . . . . . . Garrison Registry 1 | . . . . . . . . 1 . . . . . . . . . . . . . . . . . . Patrol Navigation 2 | . . . . . . . . 1 . . . . . . . . . 1 . . . . . . . . Security Stations 3 | . . . . . . 1 . . . 1 . 1 . . . . . . . . . . . . . . Proto ID Catalog 1 | . . . 1 . . . . . . . . . . . . . . . . . . . . . . . Fabricator Hacks 3 | . . . . . . . . . 3 . . . . . . . . . . . . . . . . . Network Status 2 | . . . . . . . . . 2 . . . . . . . . . . . . . . . . . Build 1 | . . . . . . . . . 1 . . . . . . . . . . . . . . . . . Repair Station Hacks 7 | . . . . . 2 . 2 . . . . . . . . . 3 . . . . . . . . . Scan Component 4 | . . . . . 1 . 1 . . . . . . . . . 2 . . . . . . . . . Repair 3 | . . . . . 1 . 1 . . . . . . . . . 1 . . . . . . . . . Recycling Unit Hacks . | . . . . . . . . . . . . . . . . . . . . . . . . . . . Scanalyzer 1 | . . . . . 1 . . . . . . . . . . . . . . . . . . . . . Insert Component 1 | . . . . . 1 . . . . . . . . . . . . . . . . . . . . . Garrison Access Hacks 12 | . . . . . 1 . 1 . 1 . 1 . 1 . 1 . 1 . 1 . 1 . 1 . 2 . Unlock Access 10 | . . . . . 1 . 1 . 1 . 1 . 1 . 1 . 1 . 1 . 1 . 1 . . . Seal Access 1 | . . . . . . . . . . . . . . . . . . . . . . . . . 1 . Coupler Status 1 | . . . . . . . . . . . . . . . . . . . . . . . . . 1 . Unauthorized Hacks 6 | . 1 . . . . . 2 1 . 2 . . . . . . . . . . . . . . . . Terminals 6 | . 1 . . . . . 2 1 . 2 . . . . . . . . . . . . . . . . Botnet 6 | . 1 . . . . . 2 1 . 2 . . . . . . . . . . . . . . . . Fabricators . | . . . . . . . . . . . . . . . . . . . . . . . . . . . Repair Stations . | . . . . . . . . . . . . . . . . . . . . . . . . . . . Recycling Units . | . . . . . . . . . . . . . . . . . . . . . . . . . . . Scanalyzers . | . . . . . . . . . . . . . . . . . . . . . . . . . . . Garrison Access . | . . . . . . . . . . . . . . . . . . . . . . . . . . . Data Cores Recovered 1 | . . . . . . . . . . . 1 . . . . . . . . . . . . . . . Used . | . . . . . . . . . . . . . . . . . . . . . . . . . . . Hacking Detections 45 | . 3 . . . 2 2 7 2 3 1 1 3 1 2 2 1 2 3 1 . 2 2 1 1 1 2 Full Trace Events 4 | . . . . . . . 1 . . . . . . 1 . . . 2 . . . . . . . . Feedback Events 1 | . . . . . . . . . . . . . . . . . . 1 . . . . . . . . Corruption 1 | . . . . . . . . . . . . . . . . . . 1 . . . . . . . . Feedback Blocked . | . . . . . . . . . . . . . . . . . . . . . . . . . . . Robot Schematics Acquired . | . . . . . . . . . . . . . . . . . . . . . . . . . . . Robots Built 2 | . . . . . . . . . 2 . . . . . . . . . . . . . . . . . Authchips . | . . . . . . . . . . . . . . . . . . . . . . . . . . . Time 38 | . . . . . . . . . 38 . . . . . . . . . . . . . . . . . Total Robot Build Rating 6 | . . . . . . . . . 6 . . . . . . . . . . . . . . . . . Part Schematics Acquired . | . . . . . . . . . . . . . . . . . . . . . . . . . . . Parts Built . | . . . . . . . . . . . . . . . . . . . . . . . . . . . Authchips . | . . . . . . . . . . . . . . . . . . . . . . . . . . . Time . | . . . . . . . . . . . . . . . . . . . . . . . . . . . Total Part Build Rating . | . . . . . . . . . . . . . . . . . . . . . . . . . . . Parts Repaired 3 | . . . . . 1 . 1 . . . . . . . . . 1 . . . . . . . . . Time 120 | . . . . . 38 . 38 . . . . . . . . . 44 . . . . . . . . . Parts Recycled . | . . . . . . . . . . . . . . . . . . . . . . . . . . . Recycled Matter . | . . . . . . . . . . . . . . . . . . . . . . . . . . . Retrieved Matter . | . . . . . . . . . . . . . . . . . . . . . . . . . . . Retrieved Components . | . . . . . . . . . . . . . . . . . . . . . . . . . . . Parts Scanalyzed . | . . . . . . . . . . . . . . . . . . . . . . . . . . . Part Schematics Acquired . | . . . . . . . . . . . . . . . . . . . . . . . . . . . Parts Damaged . | . . . . . . . . . . . . . . . . . . . . . . . . . . . Bothacking | -11 -10 -10 -10 -9 -8 -8 -8 -8 -7 -7 -6 -6 -5 -5 -5 -5 -4 -4 -3 -3 -2 -2 -2 -2 -1 -1 ------------ Run | Yrd Mat Min Exi Min Mat Gar Mat Gar Fac Gar Fac Gar Fac Gar Fac Gar Fac Gar Res Gar Res Gar Res Gar Acc Com Used RIF Installer 12 | . . . . . . 2 . 1 . 2 . 1 . 1 . 1 . 1 . . . 1 . 2 . . Command Fork 1 | . . . . . . . . . . . . . . . . . . . . . . . . 1 . . Threat Obfuscator 2 | . . . . . . . . . . . . . . . . 1 . . . . . 1 . . . . Zone Cloak 1 | . . . . . . 1 . . . . . . . . . . . . . . . . . . . . Robot Detection 1 | . . . . . . . . 1 . . . . . . . . . . . . . . . . . . Watcher Feeds 1 | . . . . . . . . . . . . . . . . . . 1 . . . . . . . . Alert ID Control 1 | . . . . . . . . . . . . . . 1 . . . . . . . . . . . . Structural Interface 1 | . . . . . . . . . . . . 1 . . . . . . . . . . . . . . Program Shield 1 | . . . . . . . . . . 1 . . . . . . . . . . . . . . . . Autooverride 1 | . . . . . . . . . . 1 . . . . . . . . . . . . . . . . Autoassimilate 1 | . . . . . . . . . . . . . . . . . . . . . . . . 1 . . Robots Hacked 151 | . . . . . . . . . . 8 3 20 3 8 1 10 . 21 1 . 2 15 8 27 18 6 Non-combat 17 | . . . . . . . . . . . 2 . 2 1 . . . . 1 . 1 . 2 . 7 1 Combat 134 | . . . . . . . . . . 8 1 20 1 7 1 10 . 21 . . 1 15 6 27 11 5 Autooverrided 25 | . . . . . . . . . . 4 . 4 . 2 . 3 . 1 . . . 1 1 7 2 . Autoassimilated 8 | . . . . . . . . . . . . . . . . . . . . . . . . 4 1 3 Robot Hacks Applied 139 | . . . . . . . . . . 5 4 16 5 10 2 7 . 22 3 . 3 15 7 19 18 3 parse_system 8 | . . . . . . . . . . . . 3 . . . . . 1 . . . 1 . 1 2 . ignore_repairs 1 | . . . . . . . . . . . . . . . . . . . . . . . . . 1 . map_walls 4 | . . . . . . . . . . . 1 . 1 . . . . . . . . . 1 . 1 . find_fabricator 1 | . . . . . . . . . . . 1 . . . . . . . . . . . . . . . drop_inventory 4 | . . . . . . . . . . . 1 . . . . . . . . . 1 . 1 . 1 . purge_threat 11 | . . . . . . . . . . . . . 2 5 . . . . 2 . . . . . 2 . find_terminals 1 | . . . . . . . . . . . . . 1 . . . . . . . . . . . . . block_reporting 2 | . . . . . . . . . . . . . . . . . . . 1 . . . . . . 1 find_garrison 3 | . . . . . . . . . . . . . . . 1 . . . . . 1 . 1 . . . reboot_propulsion 2 | . . . . . . . . . . . . . . . . 1 . 1 . . . . . . . . scatter_targeting 43 | . . . . . . . . . . 4 . 9 . 2 1 1 . 11 . . . 4 . 7 3 1 disrupt_area 1 | . . . . . . . . . . . . . . . . . . . . . . 1 . . . . spike_heat 4 | . . . . . . . . . . 1 . 2 1 . . . . . . . . . . . . . overload_power 2 | . . . . . . . . . . . . . . . . 1 . . . . . . . 1 . . amplify_resonance 8 | . . . . . . . . . . . . . . 1 . 1 . 2 . . . 2 . 2 . . wipe_record 2 | . . . . . . . . . . . . . . 1 . . . . . . . . . . . 1 disable_weapons 6 | . . . . . . . . . . . . . . . . 1 . . . . 1 . 1 1 2 . reboot_system 6 | . . . . . . . . . . . . . . . . . . . . . . . . 5 1 . overwrite_iff 23 | . . . . . . . . . . . . 2 . 1 . 2 . 4 . . . 6 3 2 3 . streamctrl_high 1 | . . . . . . . . . . . . . . . . . . . . . . . . . 1 . formatsys_low 1 | . . . . . . . . . . . . . . . . . . . . . . . . . 1 . formatsys_high 5 | . . . . . . . . . . . 1 . . . . . . 3 . . . 1 . . . . Relay Couplers Released 141 | . . . . . . 13 . . . 11 . 19 . 14 . 13 . 21 . 7 . 20 . 23 . . Machine Destruction 135 | . . . . . . 10 . . . 11 . 19 . 14 . 13 . 21 . 7 . 17 . 23 . . Programmers 6 | . . . . . . 3 . . . . . . . . . . . . . . . 3 . . . . Attached 44 | . . . . . . . . . . 1 1 5 1 5 . 3 . 5 1 1 1 8 2 7 3 . Fabnet Peak Effective % . | . . . . . . . . . . . . . . . . . . . . . . . . . . . Robots Rewired 26 | . . . . . . 2 . . . . . 15 . . . . . 1 . 2 . 2 . 4 . . Allies Hacked . | . . . . . . . . . . . . . . . . . . . . . . . . . . . Hacks Repelled . | . . . . . . . . . . . . . . . . . . . . . . . . . . . Allies | -11 -10 -10 -10 -9 -8 -8 -8 -8 -7 -7 -6 -6 -5 -5 -5 -5 -4 -4 -3 -3 -2 -2 -2 -2 -1 -1 -------- Run | Yrd Mat Min Exi Min Mat Gar Mat Gar Fac Gar Fac Gar Fac Gar Fac Gar Fac Gar Res Gar Res Gar Res Gar Acc Com Total Allies 97 | . . . . . . 2 . . 2 6 1 24 . 3 . 5 . 8 . 2 . 10 4 19 8 3 Largest Group 12 | . . . . . . 2 . . 2 4 3 12 8 5 . 2 . 2 . 2 . 2 2 7 4 2 Highest-Rated Group 285 | . . . . . . 62 . . 26 207 204 244 171 127 . 58 . 119 . 238 . 233 129 285 183 116 Highest-Rated Ally 183 | . . . . . . 31 . . 13 95 95 95 29 49 . 41 . 119 . 119 . 148 69 148 183 64 Total Orders 41 | . . . . . . . . . . 3 . 1 2 2 . . . 12 . 1 . 1 . 18 1 . STAY 24 | . . . . . . . . . . 2 . 1 1 1 . . . 7 . 1 . 1 . 10 . . ROAM 2 | . . . . . . . . . . . . . . . . . . 2 . . . . . . . . FOLLOW 10 | . . . . . . . . . . 1 . . 1 1 . . . 2 . . . . . 5 . . GUARD 3 | . . . . . . . . . . . . . . . . . . . . . . . . 3 . . AID 2 | . . . . . . . . . . . . . . . . . . 1 . . . . . . 1 . Ally Attacks 520 | . . . . . . 26 . . . 14 12 128 15 44 . 11 . 36 . 19 . 33 5 121 51 5 Total Damage 14377 | . . . . . . 375 . . . 301 337 3168 158 758 . 265 . 1340 . 912 . 1309 241 3509 1469 235 Kills 70 | . . . . . . 3 . . . 4 4 21 1 4 . 1 . 7 . 6 . 2 1 11 5 . Allies Corrupted 2 | . . . . . . . . . . . . . . . . . . . . . . . . . 1 1 Allies Melted 4 | . . . . . . . . . . . . 1 . . . . . 1 . . . 2 . . . . Intel | -11 -10 -10 -10 -9 -8 -8 -8 -8 -7 -7 -6 -6 -5 -5 -5 -5 -4 -4 -3 -3 -2 -2 -2 -2 -1 -1 ------- Run | Yrd Mat Min Exi Min Mat Gar Mat Gar Fac Gar Fac Gar Fac Gar Fac Gar Fac Gar Res Gar Res Gar Res Gar Acc Com Active Infowar (turns) 18832 | . . . . . . . 1096 298 130 988 367 1714 360 1462 516 1151 284 2264 231 827 584 1764 292 2569 1103 832 Optics 13771 | . . . . . . . . . . . 367 1714 360 1462 516 1151 284 308 . 478 584 1751 292 2569 1103 832 Jamming 11243 | . . . . . . . 1096 298 130 988 100 75 243 802 471 903 284 2218 231 827 584 1764 229 . . . Robot Analysis Total . | . . . . . . . . . . . . . . . . . . . . . . . . . . . Derelict Logs Recovered 3 | . . 2 . 1 . . . . . . . . . . . . . . . . . . . . . . Drone Launches . | . . . . . . . . . . . . . . . . . . . . . . . . . . . Drone Recoveries . | . . . . . . . . . . . . . . . . . . . . . . . . . . . Exploration | -11 -10 -10 -10 -9 -8 -8 -8 -8 -7 -7 -6 -6 -5 -5 -5 -5 -4 -4 -3 -3 -2 -2 -2 -2 -1 -1 ------------- Run | Yrd Mat Min Exi Min Mat Gar Mat Gar Fac Gar Fac Gar Fac Gar Fac Gar Fac Gar Res Gar Res Gar Res Gar Acc Com Turns Passed 24592 | 49 215 221 264 563 755 1948 1217 411 326 1887 367 1714 360 1462 516 1151 284 2394 231 827 584 1764 292 2569 1103 1118 Spaces Moved 16317 | 55 203 350 276 365 435 997 690 258 246 1183 266 1235 234 1111 431 716 193 1366 188 565 463 1017 241 1586 782 865 Core 728 | 55 203 350 114 . . . . . . . . . . . . . . . . . . . . . . 6 Treads 363 | . . . . . . 334 29 . . . . . . . . . . . . . . . . . . . Legs 13853 | . . . 162 90 . . 661 258 246 1183 266 1235 234 1111 431 716 193 1366 188 565 463 1017 241 1586 782 859 Wheels 1373 | . . . . 275 435 663 . . . . . . . . . . . . . . . . . . . . Hover . | . . . . . . . . . . . . . . . . . . . . . . . . . . . Flight . | . . . . . . . . . . . . . . . . . . . . . . . . . . . Fastest Speed 50 | 50 50 50 50 115 110 110 105 105 114 96 106 95 104 104 107 107 107 107 110 106 106 108 113 113 108 50 Average Speed 111 | 50 50 50 91 140 111 148 122 111 120 125 112 99 104 105 107 107 107 110 110 107 107 111 113 114 109 107 Slowest Speed 400 | 50 50 50 120 260 130 400 190 112 122 192 120 110 104 107 107 107 107 115 110 110 108 113 117 120 113 180 Overloaded Moves 18 | . . . . . . . . . . 17 . . . . . . . . . . . . . . . 1 Propulsion Burnouts . | . . . . . . . . . . . . . . . . . . . . . . . . . . . Robots Hopped 1 | . . . . . . . . . . . 1 . . . . . . . . . . . . . . . Potential Cave-ins 15 | . . . . . . . . . . . . . . . . . . . . 2 . 7 . 3 3 . Cave-ins Triggered 2 | . . . . . . . . . . . . . . . . . . 1 . 1 . . . . . . Exploration Rate (%) 47 | 3 41 55 61 78 34 94 54 36 7 95 7 96 10 88 13 69 4 95 9 53 15 95 12 95 27 42 Regions Visited 26 Branch Regions 4 Pre-discovered Areas 3 | . . 1 1 1 . . . . . . . . . . . . . . . . . . . . . . Known Exits Taken 14 | . 1 1 1 1 1 . 1 . 1 . 1 . 1 . 1 . 1 . 1 . 1 . 1 . . . Unknown Exits Taken 2 | 1 . . . . . . . . . . . . . . . . . . . . . . . . 1 . Scrap Searched 2 | . . . . 2 . . . . . . . . . . . . . . . . . . . . . . Spaces Dug 99 | . . . . . 2 2 11 . 1 30 1 . 4 . 3 1 6 4 2 5 4 8 1 . 5 9 Terrain Destroyed 389 | . . . . . 28 32 71 . 1 55 1 9 6 37 4 3 8 10 2 18 6 55 1 . 32 10 Melee 4 | . . . . . 2 2 . . . . . . . . . . . . . . . . . . . . Projectile 188 | . . . . . 2 3 51 . 1 . 1 1 6 3 4 3 8 10 2 18 6 45 1 . 13 10 AOE 197 | . . . . . 24 27 20 . . 55 . 8 . 34 . . . . . . . 10 . . 19 . Terrain Rammed . | . . . . . . . . . . . . . . . . . . . . . . . . . . . Walls Destroyed . | . . . . . . . . . . . . . . . . . . . . . . . . . . . Machines Disabled . | . . . . . . . . . . . . . . . . . . . . . . . . . . . Actions | -11 -10 -10 -10 -9 -8 -8 -8 -8 -7 -7 -6 -6 -5 -5 -5 -5 -4 -4 -3 -3 -2 -2 -2 -2 -1 -1 --------- Run | Yrd Mat Min Exi Min Mat Gar Mat Gar Fac Gar Fac Gar Fac Gar Fac Gar Fac Gar Res Gar Res Gar Res Gar Acc Com Total 21444 | 66 265 370 292 400 633 1290 945 343 269 1478 321 1615 336 1343 469 1064 262 2129 210 763 540 1553 258 2269 972 989 Wait 2858 | . 25 2 . 1 113 102 124 49 3 108 25 161 74 137 15 264 58 520 14 123 40 360 . 453 55 32 Move 16292 | 54 202 349 275 364 434 996 690 257 245 1182 263 1234 233 1110 430 715 192 1365 188 563 463 1016 241 1585 781 865 Hop 1 | . . . . . . . . . . . 1 . . . . . . . . . . . . . . . Pick Up 239 | 4 4 . 6 17 14 13 18 1 6 22 3 21 1 13 4 11 1 18 1 5 4 13 . 27 7 5 Fast Attach 98 | 4 2 1 2 . 3 10 11 . . 7 4 5 1 . . 2 1 9 . 4 2 8 . 5 4 13 Attach 112 | . . . 1 3 7 4 8 1 2 3 3 1 6 4 . 3 2 10 2 1 3 9 4 17 7 11 Detach 42 | . . . . 3 1 2 4 1 . 4 1 . 3 1 . 1 . 1 . 2 2 1 1 4 2 8 Swap 275 | . . 1 1 . 11 14 11 5 5 29 3 18 2 23 5 11 . 36 . 6 10 22 2 25 28 7 Drop 237 | . 3 2 7 1 11 22 21 1 3 29 4 29 . 10 3 15 . 20 . 7 4 12 . 19 12 2 Fire 1128 | 4 29 15 . 11 36 89 58 23 5 78 14 97 15 45 12 42 8 137 5 34 12 112 9 117 76 45 Melee 10 | . . . . . 2 8 . . . . . . . . . . . . . . . . . . . . Ram . | . . . . . . . . . . . . . . . . . . . . . . . . . . . Kick 1 | . . . . . . . . . . . . . . . . . . . . . . . 1 . . . Crush 1 | . . . . . 1 . . . . . . . . . . . . . . . . . . . . . Escape Stasis 52 | . . . . . . 17 . 5 . 16 . 5 1 . . . . 5 . 2 . . . . . 1 Rewire 98 | . . . . . . 13 . . . . . 44 . . . . . 8 . 16 . . . 17 . . Trap . | . . . . . . . . . . . . . . . . . . . . . . . . . . . Miscellaneous . | . . . . . . . . . . . . . . . . . . . . . . . . . . . Route ------- -11/Scrapyard -10/Materials (discovered 3 exits: *Mat / *Min x2) -10/Mines (discovered 2 exits: *Mat / *Exi) -10/Exiles -9/Mines -8/Materials (discovered 2 exits: Fac / Gar) -8/Garrison (discovered 3 exits: *Mat x3) -8/Materials (discovered 2 exits: *Fac / Gar) -8/Garrison (discovered 3 exits: *Fac x3) -7/Factory (discovered 2 exits: [*Low] / Gar) -7/Garrison (discovered 3 exits: *Fac x3) -6/Factory -6/Garrison (discovered 3 exits: *Fac x3) -5/Factory -5/Garrison (discovered 3 exits: *Fac x3) -5/Factory (discovered 2 exits: [*Ext] / Gar) -5/Garrison (discovered 2 exits: *Fac x2) -4/Factory -4/Garrison (discovered 3 exits: *Res x3) -3/Research -3/Garrison -2/Research -2/Garrison (discovered 3 exits: *Res x3) -2/Research -2/Garrison (discovered 4 exits: *Acc x3 / [*Res]) -1/Access -1/Command History --------- Turn | Location | Event 9 | -11/Scrapyard | Discovered new exit (range 15) 50 | -11/Scrapyard | Entered Materials 123 | -10/Materials | Discovered new exit (range 9) 181 | -10/Materials | Discovered new exit (range 15) 191 | -10/Materials | Identified exit to Materials 241 | -10/Materials | Discovered new exit (range 6) 263 | -10/Materials | Identified exit to Mines 265 | -10/Materials | Entered Mines 266 | -10/Mines | Learned location of Storage (-9) 268 | -10/Mines | Discovered exit to Materials (range 5) 314 | -10/Mines | Build established: Mutant 331 | -10/Mines | Learned location of 1 exit from Materials 484 | -10/Mines | Deemed a non-threat by the Exiles lab entrance 484 | -10/Mines | Discovered new exit (range 5) 486 | -10/Mines | Identified exit to Exiles 486 | -10/Mines | Entered Exiles 499 | -10/Exiles | Met 8R-AWN 507 | -10/Exiles | Met EX-HEX 522 | -10/Exiles | Met EX-BIN 527 | -10/Exiles | Aligned with FarCom system 528 | -10/Exiles | Given EX-Vault access code 540 | -10/Exiles | Opened EX-Vault 543 | -10/Exiles | Found Potential Leg 544 | -10/Exiles | Found Potential Leg 582 | -10/Exiles | Warned to stay clear of 0b10 Research branches 619 | -10/Exiles | Met EX-DEC 628 | -10/Exiles | Learned location of Zion (-6) 740 | -10/Exiles | Discovered new exit (range 10) 748 | -10/Exiles | Identified exit to Mines 750 | -10/Exiles | Left Exiles lab with Potential Leg 750 | -10/Exiles | Entered Mines 751 | -9/Mines | Assembled infested the area 778 | -9/Mines | Joined a pair of Derelicts in attacking an 0b10 outpost 842 | -9/Mines | Build established: Scavenger-Mutant 956 | -9/Mines | Met a Derelict shopkeep closing up shop 1257 | -9/Mines | Build established: Mutant 1278 | -9/Mines | Discovered new exit (range 16) 1294 | -9/Mines | Identified exit to Materials 1297 | -9/Mines | Received a Rocket Launcher from a helpful Derelict 1313 | -9/Mines | Entered Materials 1313 | -8/Materials | Evolved 4 slots: Propulsion x2, Utility x1, Weapon x1 1314 | -8/Materials | Identified exit to Factory 1391 | -8/Materials | Garrison activated, responded to threat 1588 | -8/Materials | Repaired Minigun 1888 | -8/Materials | Build established: Skirmisher 1955 | -8/Materials | Identified exit to Garrison 2068 | -8/Materials | Entered Garrison 2154 | -8/Garrison | Triggered checkpoint 2259 | -8/Garrison | Garrison Relay disabled 2316 | -8/Garrison | Triggered checkpoint 2403 | -8/Garrison | Discovered new exit (range 10) 2441 | -8/Garrison | Triggered checkpoint 2512 | -8/Garrison | Garrison Relay disabled 2904 | -8/Garrison | Triggered checkpoint 2952 | -8/Garrison | Triggered checkpoint 3003 | -8/Garrison | Discovered new exit (range 15) 3124 | -8/Garrison | Triggered checkpoint 3324 | -8/Garrison | Installed Relay Interface Framework 3456 | -8/Garrison | Triggered checkpoint 3487 | -8/Garrison | Expanded RIF knowledge: Zone Cloak 3620 | -8/Garrison | Discovered new exit (range 9) 3655 | -8/Garrison | Learned Materials security intel 3798 | -8/Garrison | Triggered checkpoint 3820 | -8/Garrison | Build established: Scavenger-Skirmisher 4016 | -8/Garrison | Entered Materials 4424 | -8/Materials | Build established: Skirmisher 4612 | -8/Materials | Discovered exit to Factory (range 16) 4720 | -8/Materials | Repaired Carbon-fiber Leg 5233 | -8/Materials | Identified exit to Garrison 5233 | -8/Materials | Entered Garrison 5299 | -8/Garrison | Triggered checkpoint 5355 | -8/Garrison | Discovered exit to Factory (range 50) 5355 | -8/Garrison | Discovered exit to Factory (range 70) 5355 | -8/Garrison | Discovered exit to Factory (range 78) 5400 | -8/Garrison | Expanded RIF knowledge: Robot Detection 5468 | -8/Garrison | Triggered checkpoint 5544 | -8/Garrison | Triggered checkpoint 5644 | -8/Garrison | Entered Factory 5644 | -7/Factory | Evolved 2 slots: Propulsion x1, Utility x1 5736 | -7/Factory | Fabricated W-25 Informer? 5854 | -7/Factory | Discovered new exit (range 11) 5904 | -7/Factory | Identified exit to Garrison 5970 | -7/Factory | Build established: Scavenger-Skirmisher 5970 | -7/Factory | Entered Garrison 5970 | -7/Garrison | Accompanied by 2 allies 6047 | -7/Garrison | Triggered checkpoint 6100 | -7/Garrison | Expanded RIF knowledge: Autooverride 6139 | -7/Garrison | Garrison Relay disabled 6329 | -7/Garrison | Triggered checkpoint 6375 | -7/Garrison | Destroyed 8 combat bots 6446 | -7/Garrison | Expanded RIF knowledge: Program Shield 6518 | -7/Garrison | Discovered new exit (range 3) 6596 | -7/Garrison | Triggered checkpoint 6646 | -7/Garrison | Build established: Bothacker-Skirmisher 6660 | -7/Garrison | Garrison Relay disabled 6734 | -7/Garrison | Triggered checkpoint 6772 | -7/Garrison | Discovered new exit (range 15) 6962 | -7/Garrison | Garrison Relay disabled 7009 | -7/Garrison | Triggered checkpoint 7307 | -7/Garrison | Heavy support dispatched to Factory 7528 | -7/Garrison | Triggered checkpoint 7681 | -7/Garrison | Learned Factory security intel 7735 | -7/Garrison | Discovered new exit (range 15) 7750 | -7/Garrison | Found embedded Infiltrators 7782 | -7/Garrison | Triggered checkpoint 7857 | -7/Garrison | Entered Factory 7857 | -6/Factory | Accompanied by 2 allies 7857 | -6/Factory | Evolved 2 slots: Utility x2 7982 | -6/Factory | Identified exit to Garrison 8207 | -6/Factory | First assault squad dispatched 8224 | -6/Factory | Entered Garrison 8224 | -6/Garrison | Accompanied by 1 ally 8300 | -6/Garrison | Triggered checkpoint 8334 | -6/Garrison | Triggered checkpoint 8460 | -6/Garrison | Rescued a captive Derelict 8559 | -6/Garrison | Triggered checkpoint 8569 | -6/Garrison | Spotted B-75 Beast 8578 | -6/Garrison | Destroyed B-75 Beast 8621 | -6/Garrison | Destroyed 9 combat bots 8780 | -6/Garrison | Discovered new exit (range 21) 8828 | -6/Garrison | Triggered checkpoint 8836 | -6/Garrison | Triggered checkpoint 8869 | -6/Garrison | Expanded RIF knowledge: Structural Interface 8879 | -6/Garrison | Discovered new exit (range 15) 8954 | -6/Garrison | Triggered checkpoint 8968 | -6/Garrison | Found embedded Infiltrators 8986 | -6/Garrison | Garrison Relay disabled 9115 | -6/Garrison | Garrison Relay disabled 9140 | -6/Garrison | Discovered new exit (range 21) 9142 | -6/Garrison | Triggered checkpoint 9159 | -6/Garrison | Build established: Botlord-Skirmisher 9168 | -6/Garrison | Garrison Relay disabled 9429 | -6/Garrison | Learned Factory security intel 9578 | -6/Garrison | Lost 4 allies 9755 | -6/Garrison | Triggered checkpoint 9817 | -6/Garrison | Garrison Relay disabled 9821 | -6/Garrison | Lost 4 allies 9938 | -6/Garrison | Entered Factory 9938 | -5/Factory | Accompanied by 8 allies 9938 | -5/Factory | Evolved 2 slots: Utility x2 10154 | -5/Factory | Lost 3 allies 10281 | -5/Factory | Identified exit to Garrison 10298 | -5/Factory | Entered Garrison 10298 | -5/Garrison | Accompanied by 5 allies 10383 | -5/Garrison | Build established: Bothacker-Skirmisher 10560 | -5/Garrison | Triggered checkpoint 10619 | -5/Garrison | Lost 4 allies 10620 | -5/Garrison | Discovered new exit (range 16) 10736 | -5/Garrison | Garrison Relay disabled 10867 | -5/Garrison | Spotted B-75 Beast 10890 | -5/Garrison | Triggered checkpoint 10933 | -5/Garrison | Spotted B-75 Beast 10950 | -5/Garrison | Triggered checkpoint 10968 | -5/Garrison | Garrison Relay disabled 10997 | -5/Garrison | Discovered new exit (range 4) 11129 | -5/Garrison | Triggered checkpoint 11258 | -5/Garrison | Discovered new exit (range 9) 11280 | -5/Garrison | Build established: Botlord-Skirmisher 11287 | -5/Garrison | Expanded RIF knowledge: Alert ID Control 11397 | -5/Garrison | Garrison Relay disabled 11760 | -5/Garrison | Entered Factory 12257 | -5/Factory | Identified exit to Garrison 12263 | -5/Factory | Discovered new exit (range 22) 12276 | -5/Factory | Entered Garrison 12432 | -5/Garrison | Triggered checkpoint 12458 | -5/Garrison | Triggered checkpoint 12616 | -5/Garrison | Garrison Relay disabled 12835 | -5/Garrison | Expanded RIF knowledge: Threat Obfuscation 12846 | -5/Garrison | Discovered new exit (range 5) 12909 | -5/Garrison | Triggered checkpoint 12940 | -5/Garrison | Garrison Relay disabled 13092 | -5/Garrison | Discovered new exit (range 8) 13153 | -5/Garrison | Garrison Relay disabled 13427 | -5/Garrison | Entered Factory 13427 | -4/Factory | Evolved 2 slots: Power x1, Utility x1 13438 | -4/Factory | Identified exit to Garrison 13447 | -4/Factory | Spotted B-86 Titan 13636 | -4/Factory | Repaired Imp. Medium Armor Plating 13711 | -4/Factory | Entered Garrison 13751 | -4/Garrison | Triggered checkpoint 13831 | -4/Garrison | Garrison Relay disabled 13881 | -4/Garrison | Garrison Relay disabled 13979 | -4/Garrison | Spotted B-86 Titan 14031 | -4/Garrison | Destroyed B-86 Titan 14205 | -4/Garrison | Triggered checkpoint 14213 | -4/Garrison | Triggered checkpoint 14354 | -4/Garrison | Discovered new exit (range 5) 14450 | -4/Garrison | Spotted Striker 14472 | -4/Garrison | Destroyed Striker 14491 | -4/Garrison | Rewired Executioner 14515 | -4/Garrison | Build established: Botlord-Gunner 14515 | -4/Garrison | Garrison Relay disabled 14628 | -4/Garrison | Spotted B-86 Titan 14645 | -4/Garrison | Expanded RIF knowledge: Watcher Feeds 14652 | -4/Garrison | Discovered new exit (range 10) 14717 | -4/Garrison | Triggered checkpoint 14743 | -4/Garrison | Garrison Relay disabled 14807 | -4/Garrison | Destroyed B-86 Titan 14808 | -4/Garrison | Crushed by falling debris 14839 | -4/Garrison | Lost 5 parts (1p4u) 14933 | -4/Garrison | Found Exp. Core Analyzer 15099 | -4/Garrison | Build established: Botlord-Skirmisher 15349 | -4/Garrison | Triggered checkpoint 15583 | -4/Garrison | Build established: Botlord-Tank 15752 | -4/Garrison | Garrison Relay disabled 15896 | -4/Garrison | Discovered new exit (range 8) 16105 | -4/Garrison | Entered Research 16105 | -3/Research | Evolved 2 slots: Propulsion x1, Utility x1 16336 | -3/Research | Identified exit to Garrison 16336 | -3/Research | Entered Garrison 16397 | -3/Garrison | Spotted Executioner 16411 | -3/Garrison | Destroyed Executioner 16434 | -3/Garrison | Rewired Executioner 16440 | -3/Garrison | Rewired Executioner 16494 | -3/Garrison | Triggered checkpoint 16517 | -3/Garrison | Garrison Relay disabled 16698 | -3/Garrison | Found Exp. Core Analyzer 16820 | -3/Garrison | Crushed by falling debris 16824 | -3/Garrison | Triggered checkpoint 16875 | -3/Garrison | Garrison Relay disabled 16892 | -3/Garrison | Discovered new exit (range 20) 17163 | -3/Garrison | Entered Research 17163 | -2/Research | Evolved 2 slots: Power x1, Utility x1 17190 | -2/Research | Found Unknown Device 17190 | -2/Research | Identified Launcher Loader 17747 | -2/Research | Identified exit to Garrison 17747 | -2/Research | Entered Garrison 17754 | -2/Garrison | Spotted B-90 Cyclops 17820 | -2/Garrison | Spotted B-90 Cyclops 17847 | -2/Garrison | Garrison Relay disabled 17869 | -2/Garrison | Triggered checkpoint 17982 | -2/Garrison | Rewired B-90 Cyclops 17984 | -2/Garrison | Rewired B-75 Beast 18051 | -2/Garrison | Found Quantum Capacitor 18200 | -2/Garrison | Spotted B-90 Cyclops 18253 | -2/Garrison | Triggered checkpoint 18265 | -2/Garrison | Triggered checkpoint 18283 | -2/Garrison | Discovered new exit (range 10) 18332 | -2/Garrison | Garrison Relay disabled 18373 | -2/Garrison | Triggered checkpoint 18547 | -2/Garrison | Build established: Botlord-Skirmisher 18625 | -2/Garrison | Triggered checkpoint 18639 | -2/Garrison | Triggered checkpoint 18695 | -2/Garrison | Destroyed B-90 Cyclops 18699 | -2/Garrison | Lost 3 allies 18751 | -2/Garrison | Discovered new exit (range 7) 18839 | -2/Garrison | Triggered checkpoint 18862 | -2/Garrison | Garrison Relay disabled 18929 | -2/Garrison | Garrison Relay disabled 19016 | -2/Garrison | Expanded RIF knowledge: Threat Obfuscation 19186 | -2/Garrison | Discovered new exit (range 13) 19265 | -2/Garrison | Triggered checkpoint 19284 | -2/Garrison | Garrison Relay disabled 19511 | -2/Garrison | Entered Research 19789 | -2/Research | Lost 12 parts (3p2n3u4w) 19803 | -2/Research | Identified exit to Garrison 19803 | -2/Research | Entered Garrison 19828 | -2/Garrison | Expanded RIF knowledge: Autoassimilate 19871 | -2/Garrison | Triggered checkpoint 19882 | -2/Garrison | Garrison Relay disabled 19958 | -2/Garrison | Build established: Botlord-Mutant 20214 | -2/Garrison | Spotted B-75 Beast 20361 | -2/Garrison | Build established: Botlord-Skirmisher 20379 | -2/Garrison | Spotted B-90 Cyclops 20387 | -2/Garrison | Rewired B-90 Cyclops 21208 | -2/Garrison | Destroyed B-90 Cyclops 21423 | -2/Garrison | Triggered checkpoint 21506 | -2/Garrison | Expanded RIF knowledge: Command Fork 21569 | -2/Garrison | Discovered new exit (range 13) 21619 | -2/Garrison | Triggered checkpoint 21646 | -2/Garrison | Garrison Relay disabled 21869 | -2/Garrison | Discovered new exit (range 20) 21884 | -2/Garrison | Spotted B-90 Cyclops 21913 | -2/Garrison | Garrison Relay disabled 22011 | -2/Garrison | Rescued a captive Derelict 22012 | -2/Garrison | Rescued a captive Derelict 22035 | -2/Garrison | Triggered checkpoint 22045 | -2/Garrison | Garrison Relay disabled 22051 | -2/Garrison | Triggered checkpoint 22060 | -2/Garrison | Discovered new exit (range 5) 22161 | -2/Garrison | Triggered checkpoint 22229 | -2/Garrison | Triggered checkpoint 22231 | -2/Garrison | Discovered new exit (range 13) 22313 | -2/Garrison | Garrison Relay disabled 22372 | -2/Garrison | Entered Access 22372 | -1/Access | Accompanied by 4 allies 22372 | -1/Access | Evolved 2 slots: Utility x2 22622 | -1/Access | Energy Cycler disabled 22765 | -1/Access | Lost 4 allies 23465 | -1/Access | Lost 4 parts (1p3n) 23467 | -1/Access | Discovered new exit (range 8) 23475 | -1/Access | Entered Command 23796 | -1/Command | Found Prototype Device 23796 | -1/Command | Identified Exp. Actuator Array 23869 | -1/Command | System corruption reached 10% 23915 | -1/Command | Lost 5 parts (2p1n1u1w) 24221 | -1/Command | Spotted B-99 Colossus 24379 | -1/Command | Lost 6 parts (1p1n2u2w) 24561 | -1/Command | System corruption reached 30% 24581 | -1/Command | Spotted Alpha 7 24581 | -1/Command | Spotted Alpha 7 24581 | -1/Command | Spotted Striker 24581 | -1/Command | Spotted Striker 24581 | -1/Command | Spotted Executioner 24581 | -1/Command | Spotted Executioner 24581 | -1/Command | Spotted Executioner 24581 | -1/Command | Spotted Executioner 24581 | -1/Command | Spotted B-99 Colossus 24585 | -1/Command | Spotted B-99 Colossus 24589 | -1/Command | Core integrity fell below 50% 24592 | -1/Command | Core integrity fell below 20% 24593 | -1/Command | Destroyed by Executioner with Helical Railgun Last Messages --------------- 24590_ Triggered Stasis Trap. 24590_ A bubble of rippling energy engulfs the area. 24590_ Field strength at 94. 24590_ Penetrated by Slug. 24590_ Slug penetrates Executioner. 24590_ Field strength at 59. 24590_ Knocked back. 24590_ Penetrated by Slug. 24590_ Slug penetrates Wall. 24591_ Slug penetrates Striker. 24591_ Relay Coupler [Grunt] destroyed. 24591_ Acquired 9 matter. 24591_ Penetrated by Slug. 24591_ Alpha 7 knocked back. 24591_ Penetrated by Slug. 24591_ Slug penetrates Wall. 24592_ Acquired 22 matter. 24592_ P-80 Master resets Alpha 7, system corruption cleaned. Map ----- +----------------------------------------------------+ | ?# #???# #???????????????# #????????????????? | | ?# #???# ###+############# #????????????????? | | ?# #???# #????????????????? | | ?# #???# +????????????????? | | ?# ####### ########+##### #????????????????? | | ?# # =# #??# # #????????????????? | | ?# # # #??# +? +????????????????? | | ?# # # #??# #??#####????????????????? | | ?# + # #??# #?????Y?????????????????? | | ?# # # #### """" #???????????????????????? | | ?# # # # """" #???????????????????????? | | ?+ # + # """" #???????????????????????? | | ?+ ####### # """" #???????????????????????? | | ?+ ####### ###########???????????????????????? | | ?+ # # #?????????????????????????????????? | | ?# # # #????????????########?????????????? | | ?# # # #???????????# ?????????????? | | ?# + #! #???########;BB ??????????????? | | ?# # #*= #?### # # # ;BB ????????????????? | | ?# # #%! ### E E "?????????????????? | | ?# # #=! / K7 "?????????????????? | | ?# ####+##= p / !^^ "?????????????????? | | ?# #??# p% /!!^% "?????????????????? | | ?# #??# p p p%;[]K[E^ "?????????????????? | | ## ##?# ######"#%7=*! E BB^"""???????????????? | | # ### # ####!| ; @ ;BB #????????? | | # # #??######### #????????? | | # + #???????????? #????????? | | # ###### #??????????????#########?????????? | | ##+######## #????????????????????????????????? | | * ## #????????????????????????????????? | | !%= ## #????????????????????????????????? | | """" * ## #????????????????????????????????? | | ""R"" ## #????????????????????????????????? | | " " ## #????????????????????????????????? | | ## #????????????????????????????????? | | ! ## #????????????????????????????????? | | ########????????????????????????????????? | | ##########???????????????????????????????????????? | | ?????????????????????????????????????????????????? | | ?????????????????????????????????????????????????? | | ?????????????????????????????????????????????????? | | ?????????????????????????????????????????????????? | | | | | | | | | | | | | | | +----------------------------------------------------+ Best States ------------- Heat Dissipation 133 Coolant Potential 80 Energy Generation 96 Energy Capacity 690 Matter Stores 300 Matter Capacity 300 Sight Range 23 Terrain Scan Density 10 Jamming Range 12 Power Amplification 30 Armor Coverage 450 Weapon Cycling 25 Phase Shifting 15 Evasion (%) 70 Targeting Accuracy 11 Core Analysis 8 Recoil Reduction 4 Offensive Hacking 10 Relay Coupler Types 6 Relay Coupler Value 158 Item Schematics ----------------- None Robot Schematics ------------------ None Fabricated ------------ W-25 Informer | x2 | -7/Factory | Preloaded Repaired ---------- Minigun | 28% | -8/Materials Carbon-fiber Leg | 16% | -8/Materials Imp. Medium Armor Plating | 64% | -4/Factory Alien Tech Used ----------------- None Achievements -------------- None Challenges ------------ Scavenger Game ------ Seed ArcDeepCleaver Manual? 0 Play Time 05:54:35 Cumulative 658.5 hours Start 2025.06.27 @ 19:02:05 End 2025.06.28 @ 00:58:38 Sessions 1 Manual Loads 0 Difficulty Rogue Special Mode None Game No. 155 Rogue 115 Adventurer 4 Explorer 36 Win Type - Total 57 Types 34/6/5/2/2/3/2/1/1/1 Lore% 79 Gallery% 82 Achievement% 94 Wizard Run 0 Options --------- Layout 2 ASCII 0 Keyboard 1 Movement Vi Keybinds 0 Fullscreen 2 Font 32/SmallcapsGlow Map View 50x44 Zoom Use 0% Tactical HUD 1 Map Filters NONE Filters NONE Steam 1 RUN: d801e6e9-46f7-4ec3-9392-dff0874f228b